Cogmind - Beta 15 @@@ ROGUE MODE // 2025.05.30 @ 18:14:57 Player: ChromeKnight Result: Destroyed by Y-54 Guardian with Gatling Laser Performance ------------- Evolutions (3) 1500 Regions Visited (11) 2200 Robots Destroyed (152) 760 Value Destroyed (5168) 5168 Prototype IDs (2) 40 Alien Tech Used (0) 0 Bonus (2510) 2510 TOTAL SCORE: 12178 Bonus ------- High Alert Combat Kills 873 Follower Combat Kills 410 Entered Garrisons 400 Used RIF Installer 1000 Friendly Fire -173 Cogmind --------- Core Integrity 0/700 Matter 224/300 Energy 98/100 System Corruption 1% Temperature Cool (6) Movement Core (50) Location -7/Garrison Parts ------- > --- POWER (1) -------- (None) > --- PROPULSION (4) --- (None) > --- UTILITY (6) ------ Improved Signal Interpreter Hacking Suite Relay Coupler [Grunt] (6) > --- WEAPON (2) ------- (None) > --- INVENTORY (5) ---- Improved Sensor Array Hacking Suite System Shield Relay Coupler [NC] (33) Remote Datajack Peak State ------------ > --- POWER ------------ Micro Nuclear Core > --- PROPULSION ------- Gravmag System Gravmag System Combat Airjet Combat Airjet > --- UTILITY ---------- Medium Storage Unit Improved Sensor Array Improved Signal Interpreter Hacking Suite Improved System Shield Relay Coupler [Hunter] > --- WEAPON ----------- Shock Rifle Remote Datajack > --- INVENTORY -------- Micro Nuclear Core Improved Sensor Array Hacking Suite System Shield Relay Coupler [NC] Relay Coupler [NC] Relay Coupler [Swarmer] Relay Coupler [Grunt] Remote Datajack [Rating: 51] Favorites ----------- Power Heavy Ion Engine Engine Heavy Ion Engine Power Core Micro Nuclear Core Propulsion Light Treads Treads Light Treads Leg Carbon-fiber Leg Hover Unit Combat Airjet Flight Unit VTOL Module Utility High-capacity Storage Unit Device Improved Sensor Array Storage High-capacity Storage Unit Processor Melee Analysis Suite Hackware Hacking Suite Protection Improved Weapon Shielding Weapon Heavy EM Pulse Gun Energy Gun Heavy EM Pulse Gun Ballistic Gun Minigun Launcher Rocket Launcher Special Weapon Remote Datajack Slashing Weapon Greatsword Build | -11 -10 -10 -9 -9 -9 -8 -8 -8 -8 -7 -7 ------- Run | Yrd Mat Min Mat Min Exi Min Mat Gar Mat Fac Gar Slots Evolved 6 | . . . 2 . . . 2 . . 2 . Power . | . . . . . . . . . . . . Propulsion 2 | . . . . . . . 1 . . 1 . Utility 4 | . . . 2 . . . 1 . . 1 . Weapon . | . . . . . . . . . . . . Parts Attached 102 | 6 7 1 6 1 . 7 13 23 6 16 16 Power 13 | 1 2 . 1 . . 2 2 3 . 1 1 Engine 8 | 1 2 . 1 . . 2 . 2 . . . Core 5 | . . . . . . . 2 1 . 1 1 Reactor . | . . . . . . . . . . . . Propulsion 31 | 2 . . . . . 1 5 8 4 4 7 Treads 5 | 2 . . . . . 1 2 . . . . Leg 11 | . . . . . . . 3 8 . . . Wheel . | . . . . . . . . . . . . Hover 10 | . . . . . . . . . 4 4 2 Flight 5 | . . . . . . . . . . . 5 Utility 24 | 1 3 1 2 . . 1 2 3 2 7 2 Device 3 | . 1 . . . . . . . 1 1 . Storage 4 | 1 2 . . . . . . . . 1 . Processor 3 | . . . 1 . . . 1 . 1 . . Hackware 8 | . . . 1 . . . . 1 . 5 1 Protection 6 | . . 1 . . . 1 1 2 . . 1 Artifact . | . . . . . . . . . . . . Weapon 34 | 2 2 . 3 1 . 3 4 9 . 4 6 Energy Gun 8 | 1 2 . 3 . . . . . . 1 1 Energy Cannon . | . . . . . . . . . . . . Ballistic Gun 16 | 1 . . . . . 1 3 4 . 2 5 Ballistic Cannon . | . . . . . . . . . . . . Launcher 4 | . . . . 1 . 1 1 1 . . . Special Weapon 1 | . . . . . . . . 1 . . . Impact Weapon . | . . . . . . . . . . . . Slashing Weapon 5 | . . . . . . 1 . 3 . 1 . Piercing Weapon . | . . . . . . . . . . . . Special Melee Weapon . | . . . . . . . . . . . . Unidentified Prototypes 2 | . 1 . . . . . 1 . . . . Corrupted Parts 1 | . . . . . . 1 . . . . . System Corruption 3 | . . . . . . 3 . . . . . Parts Lost 46 | . . 1 4 3 . 4 1 13 1 1 18 Power 7 | . . . 1 . . 1 . 4 . . 1 Propulsion 17 | . . . . 1 . 1 . 4 1 1 9 Utility 5 | . . 1 1 . . . . 1 . . 2 Weapon 17 | . . . 2 2 . 2 1 4 . . 6 Highest Loss Streak 9 | . . 1 2 1 . 2 1 4 1 1 9 To Critical Strikes . | . . . . . . . . . . . . Average Backups 16 | 1 13 20 19 18 18 18 18 18 18 9 9 Power 1 | . 2 2 1 1 1 1 2 1 1 . . Propulsion 3 | . 1 5 5 6 6 6 5 2 1 . 1 Utility 5 | . 2 2 2 2 3 3 5 9 12 7 5 Weapon 4 | . 6 9 8 7 7 6 4 3 1 . . Tool/Special . | . . . . . . . . . . . . Unused Backups 43 | . . 1 1 . . 1 6 25 . 3 6 Power 2 | . . 1 . . . . . . . 1 . Propulsion 6 | . . . . . . . 3 3 . . . Utility 23 | . . . . . . . . 16 . 2 5 Weapon 9 | . . . 1 . . 1 3 4 . . . Tool/Special 3 | . . . . . . . . 2 . . 1 Average Slot Usage (%) 84 | . 89 96 71 78 66 75 88 89 89 88 87 Engine 6 | . 13 14 10 11 11 8 . 4 . . . Core 2 | . . . . . . . 7 2 9 7 5 Treads 10 | . 28 28 21 17 11 13 4 3 . . . Leg 7 | . . . . . . . 20 22 6 . . Hover 4 | . . . . . . . . . 20 23 24 Device 1 | . 8 . . . . . . . 8 6 . Storage 10 | . 14 14 11 11 11 11 9 9 9 7 7 Processor 8 | . . . 1 11 11 11 11 12 17 8 7 Hackware 8 | . . . 1 11 11 11 9 9 9 19 20 Protection 5 | . . 10 3 . . 6 9 10 . . 3 Energy Gun 7 | . 23 28 21 8 . . . . . 2 4 Ballistic Gun 3 | . . . . . . 5 12 8 . 2 6 Launcher 2 | . . . . 7 11 8 5 1 . . . Slashing Weapon 1 | . . . . . . . . 4 9 1 . Peak Build Rating 51 | 6 13 13 18 18 15 19 34 41 45 51 49 Average Rating 25 | 4 10 12 13 16 15 16 23 32 43 44 40 On Entrance 21 | . 5 13 13 18 15 15 16 34 40 44 48 Naked Turns . | . . . . . . . . . . . . Heaviest Build 62 | 13 55 57 57 55 52 54 58 61 61 62 27 Greatest Support 45 | 40 40 40 40 40 20 43 40 45 42 42 41 Greatest Overweight (x) 5 | 1 1 1 1 2 2 2 4 3 2 1 5 Average Overweight (x) . | . . 1 1 1 2 1 1 1 1 . . Largest Inventory Capacity 20 | 8 20 20 20 20 20 20 20 20 20 20 10 Average Capacity 18 | 7 15 20 20 20 20 20 20 20 20 10 9 Most Carried 20 | 2 20 20 20 19 18 20 20 20 20 19 10 Average Carried 16 | 1 13 19 19 18 18 18 18 18 19 9 9 Final Capacity 20 | 8 20 20 20 20 20 20 20 20 20 10 5 Final Carried 20 | 3 20 20 19 18 18 18 20 20 19 9 5 Class Distribution -------------------- 54% | Mutant 17% | Scavenger-Mutant 14% | Bothacker-Gladiator 11% | Bothacker-Mutant Dominant Class ---------------- Mutant | -10/Materials Mutant | -10/Mines Mutant | -9/Materials Mutant | -9/Mines Mutant | -9/Exiles Mutant | -8/Mines Scavenger-Mutant | -8/Materials Bothacker-Mutant | -8/Garrison Bothacker-Gladiator | -8/Materials Bothacker-Mutant | -7/Factory Scavenger-Mutant | -7/Garrison Resources | -11 -10 -10 -9 -9 -9 -8 -8 -8 -8 -7 -7 ----------- Run | Yrd Mat Min Mat Min Exi Min Mat Gar Mat Fac Gar Matter Collected 2694 | 239 100 10 70 34 . 224 206 1057 100 328 326 Remotely . | . . . . . . . . . . . . Salvage Created 4728 | . 179 139 967 89 . 434 523 1538 224 197 438 Parts 293 | . 9 18 60 14 . 15 41 85 11 13 27 Haulers Intercepted 1 | . . . . . . . 1 . . . . Recyclers Shooed 3 | . . . . . . . 3 . . . . Parts Field Recycled . | . . . . . . . . . . . . Retrieved Matter . | . . . . . . . . . . . . Parts Self-Destructed . | . . . . . . . . . . . . Prevented . | . . . . . . . . . . . . Kills | -11 -10 -10 -9 -9 -9 -8 -8 -8 -8 -7 -7 ------- Run | Yrd Mat Min Mat Min Exi Min Mat Gar Mat Fac Gar Combat Hostiles Destroyed 120 | . 5 8 14 9 . 9 9 41 4 5 16 Melee 15 | . . . . . . . . 7 4 4 . Guns 72 | . 4 7 12 . . 2 9 21 . 1 16 AOE 32 | . 1 1 2 9 . 7 . 12 . . . Classes Destroyed 18 | . 3 . 8 . . 2 2 3 . . . Worker 5 | . . . 4 . . . 1 . . . . Builder 1 | . . . . . . 1 . . . . . Tunneler 2 | . . . . . . 1 1 . . . . Hauler 1 | . . . . . . . 1 . . . . Recycler 6 | . . . 2 . . 2 1 . 1 . . Mechanic 1 | . . . 1 . . . . . . . . Operator 4 | . . . 3 . . . 1 . . . . Watcher 9 | . 1 . 4 . . . 1 2 . 1 . Swarmer 57 | . 3 8 5 6 . . 4 16 1 3 11 Grunt 42 | . 2 . 5 3 . 7 3 18 3 1 . Brawler 3 | . . . 2 . . 1 . . . . . Duelist 3 | . . . 1 . . 1 . 1 . . . Sentry 5 | . . . 1 . . . 1 . . . 3 Demolisher 1 | . . . . . . . . 1 . . . Specialist 1 | . . . . . . . . 1 . . . Hunter 3 | . . . . . . . 1 1 . . 1 Programmer 5 | . . . . . . . . 3 . 1 1 Zionite 1 | . . . 1 . . . . . . . . Thug 2 | . . . 1 . . . . 1 . . . Best Kill Streak 8 | . 3 3 5 3 . 5 5 8 2 4 4 Combat Bots Only 8 | . 3 3 3 3 . 3 2 8 2 4 4 Max Kills in Single Turn 3 | . 1 2 3 3 . 2 1 3 1 1 1 Gunslinging 1 | . . 1 . . . . . . . . . Exploded 3 | . 1 1 1 3 . 2 . 3 . . . Melee 1 | . . . . . . . . 1 1 1 . Uniques/NPCs Destroyed . | . . . . . . . . . . . . Combat | -11 -10 -10 -9 -9 -9 -8 -8 -8 -8 -7 -7 -------- Run | Yrd Mat Min Mat Min Exi Min Mat Gar Mat Fac Gar Hostile Shots Fired 894 | . 18 29 64 32 . 34 56 229 19 63 350 Missed 275 | . 5 10 18 9 . 10 15 61 8 23 116 Hits 619 | . 13 19 46 23 . 24 41 168 11 40 234 Melee 4 | . . . 1 . . 1 . 2 . . . Projectile 615 | . 13 19 45 23 . 23 41 166 11 40 234 AOE 1 | . . . . . . . . . . 1 . Critical Strikes 19 | . . . . . . 2 . 14 . 1 2 Actively Blocked 1 | . . . . . . . . 1 . . . Damage Taken 7584 | . 183 198 606 270 . 534 526 2460 170 594 2043 Core 1561 | . 75 46 143 28 . 134 119 286 30 70 630 Absorbed by Shields 259 | . . . . . . . . 92 . . 167 Redirected to Shielding 219 | . . . . . . 17 24 178 . . . Regen/Repaired (Parts) 181 | . . . 139 . . . . . . 42 . Core Remaining (%) 48 | 100 . 51 . . . 23 . . 20 . . Volleys Fired 327 | . 16 11 63 10 . 19 41 78 . 31 58 Largest 2 | . 2 2 2 2 . 2 2 2 . 1 2 Hottest 108 | . 90 90 90 90 . 40 61 61 . 50 108 Shots Fired 517 | . 23 22 114 12 . 26 67 134 . 31 88 Gun 452 | . 23 22 114 4 . 14 61 113 . 16 85 Cannon . | . . . . . . . . . . . . Launcher 46 | . . . . 8 . 12 6 20 . . . Special 19 | . . . . . . . . 1 . 15 3 Kinetic 252 | . . . . . . 14 61 113 . 9 55 Thermal 30 | . . . . . . . . . . . 30 Explosive 27 | . . . . 8 . 12 . 7 . . . Electromagnetic 189 | . 23 22 114 4 . . 6 13 . 7 . Robot Hit Streak 22 | . 5 2 11 3 . 5 22 13 . 9 12 Robot Miss Streak 8 | . 4 3 5 3 . 3 4 5 . 3 8 Penetration Max . | . . . . . . . . . . . . Secondary Targets 9 | . . 2 2 . . . 2 1 . . 2 Max Gunslinging Chain 1 | . . 1 1 . . . 1 1 . . 1 Shots Hit Robots 349 | . 13 10 62 6 . 14 42 96 11 27 68 Core Hits 251 | . 9 9 38 14 . 24 26 60 5 7 59 Critical Kills 2 | . . . . . . . . 2 . . . Critical Parts Destroyed 4 | . . . . . . . 1 3 . . . Critical Strikes 14 | . 1 . 2 . . . 1 6 3 1 . Destroy 6 | . . . . . . . 1 5 . . . Corrupt 3 | . 1 . 2 . . . . . . . . Sever 5 | . . . . . . . . 1 3 1 . Melee Attacks 66 | . . . . . . . . 31 24 11 . Impact . | . . . . . . . . . . . . Slashing 66 | . . . . . . . . 31 24 11 . Piercing . | . . . . . . . . . . . . Sneak Attacks 4 | . . . . . . . . 1 3 . . Combat Hostiles 1 | . . . . . . . . . 1 . . Follow-up Attacks . | . . . . . . . . . . . . Damage Inflicted 10023 | . 317 194 1416 535 . 816 776 3620 727 491 1131 Guns 4544 | . 220 155 1091 31 . 109 507 1127 . 173 1131 Cannons . | . . . . . . . . . . . . Explosions 3598 | . 97 39 325 502 . 706 269 1660 . . . Melee 1878 | . . . . . . . . 833 727 318 . Ramming 3 | . . . . 2 . 1 . . . . . Kinetic 2569 | . . . . . . 109 507 1127 . 109 717 Thermal 1009 | . 97 39 325 . . . 36 98 . . 414 Explosive 1918 | . . . . 502 . 706 . 710 . . . Electromagnetic 2646 | . 220 155 1091 31 . . 233 852 . 64 . Impact . | . . . . . . . . . . . . Slashing 1878 | . . . . . . . . 833 727 318 . Piercing . | . . . . . . . . . . . . Highest Corruption 3 | . . . . . . 3 . 3 3 . 1 Average Corruption 2 | . . . . . . 3 . 2 3 . 1 Corruption Purged . | . . . . . . . . . . . . Corruption Blocked . | . . . . . . . . . . . . Effects 75 | . . . . . . . . 57 13 . 5 Message Errors 19 | . . . . . . . . 15 4 . . Matter Fused 20 | . . . . . . . . 16 3 . 1 Heat Flow Errors 11 | . . . . . . . . 7 3 . 1 Energy Discharges 6 | . . . . . . . . 5 1 . . Parts Fused 1 | . . . . . . . . 1 . . . Data Loss (minor) 11 | . . . . . . . . 8 2 . 1 Data Loss (major) 4 | . . . . . . . . 3 . . 1 Misfires 1 | . . . . . . . . 1 . . . Alerts 1 | . . . . . . . . 1 . . . Weapon Failures 1 | . . . . . . . . . . . 1 Overload Shots . | . . . . . . . . . . . . Overflow Damage 178 | . . 18 25 9 . 27 24 49 6 20 . Projectiles . | . . . . . . . . . . . . Explosions 123 | . . 18 25 9 . 27 24 20 . . . Melee 55 | . . . . . . . . 29 6 20 . Knockbacks . | . . . . . . . . . . . . Impact . | . . . . . . . . . . . . Kinetic . | . . . . . . . . . . . . Secondary . | . . . . . . . . . . . . Self-Inflicted Damage 795 | . 46 38 137 66 . 143 19 346 . . . Shots 28 | . 1 1 5 3 . 4 1 13 . . . Rammed 2 | . . . 1 1 . . . . . . . Targets Rammed 3 | . . . 1 1 . 1 . . . . . Kicked . | . . . . . . . . . . . . Crushed 1 | . . . . . . 1 . . . . . Highest Temperature 377 | . 377 252 297 30 . 21 12 273 202 5 349 Average Temperature 72 | . 80 96 81 17 . 7 6 55 81 5 85 Received Heat Transfer 1938 | . 45 . 123 45 . 243 135 811 90 99 347 Effects 2 | . . 1 . . . . . . . . 1 Shutdowns 1 | . . . . . . . . . . . 1 Energy Bleed 1 | . . 1 . . . . . . . . . Siege Activations . | . . . . . . . . . . . . Martial Activations . | . . . . . . . . . . . . Shielding Activations . | . . . . . . . . . . . . Robots Disrupted . | . . . . . . . . . . . . Combat Hostiles . | . . . . . . . . . . . . Robots Corrupted 1 | . . . . . . . . 1 . . . Combat Hostiles 1 | . . . . . . . . 1 . . . Parts Fried 8 | . . . 3 . . . 2 3 . . . Impact Corruptions . | . . . . . . . . . . . . Robots Melted . | . . . . . . . . . . . . Combat Hostiles . | . . . . . . . . . . . . Parts Melted 1 | . . . . . . . . . . . 1 Heat Transferred 1850 | . 100 100 500 . . . 50 150 . . 950 Parts Sabotaged . | . . . . . . . . . . . . Parts Stolen . | . . . . . . . . . . . . Parts Stripped . | . . . . . . . . . . . . Power Chain Reactions 13 | . 1 1 7 . . . 1 3 . . . Alert | -11 -10 -10 -9 -9 -9 -8 -8 -8 -8 -7 -7 ------- Run | Yrd Mat Min Mat Min Exi Min Mat Gar Mat Fac Gar Maximum Alert Level 5 | . . . 1 . . . . 5 4 2 2 Low Security (%) 49 | 100 100 100 89 100 . 100 100 4 . . . Level 1 12 | . . . 10 . . . . 15 . 30 59 Level 2 9 | . . . . . . . . 1 . 69 40 Level 3 3 | . . . . . . . . 12 . . . Level 4 14 | . . . . . . . . 28 100 . . Level 5 10 | . . . . . . . . 37 . . . High Security . | . . . . . . . . . . . . Max Security . | . . . . . . . . . . . . Peak Influence 2825 | . 70 93 234 138 . 112 80 2825 1376 631 514 Initial 1376 | . . . . 84 . . 10 . 1376 546 244 Average 575 | . 9 20 71 64 . 38 34 1401 1272 455 370 Influence Increases 6040 | . 175 210 592 277 . 338 276 2995 196 581 400 Destroy 0b10 Robot/C 2740 | . 100 160 340 180 . 180 180 960 100 220 320 Destroy 0b10 Robot/NC 155 | . 5 . 70 . . 20 30 10 10 10 . Destroy Leader 378 | . 22 20 98 30 . 30 34 50 20 54 20 Allied During Kill 134 | . . . 12 . . . . 98 1 23 . Successful Hack 80 | . 30 . 8 . . . . 26 12 4 . Disable Machine 120 | . 15 30 30 . . . 15 30 . . . Anti-Garrison Action 1550 | . . . . . . . . 1550 . . . Destroy Structure 253 | . 3 . 19 52 . 78 2 91 8 . . Partial Spotted 45 | . . . . . . . . . 15 30 . Lose Combat Pursuer 585 | . . . 15 15 . 30 15 180 30 240 60 Influence Decreases 5596 | . 175 210 374 453 42 311 303 170 1821 1432 305 Entered New Map 2401 | . . . . 134 42 . 17 . 1449 654 105 Time Decay 2362 | . 175 200 334 286 . 271 276 . 342 478 . Lost Part 454 | . . 10 40 24 . 40 10 130 10 10 180 Lost Ally 229 | . . . . 9 . . . 40 20 140 20 Purge Threat 150 | . . . . . . . . . . 150 . Squads Dispatched 10 | . 1 . 3 . . . 1 . . 5 . Investigation 3 | . 1 . . . . . . . . 2 . Extermination 2 | . . . . . . . . . . 2 . Reinforcement 5 | . . . 3 . . . 1 . . 1 . Assault . | . . . . . . . . . . . . Garrison . | . . . . . . . . . . . . Intercept . | . . . . . . . . . . . . Searches Triggered . | . . . . . . . . . . . . Construction Impeded 1 | . . . . . . . 1 . . . . Haulers Reinforced . | . . . . . . . . . . . . Active Scanning Responses . | . . . . . . . . . . . . Cargo Convoy Interrupts . | . . . . . . . . . . . . Stealth | -11 -10 -10 -9 -9 -9 -8 -8 -8 -8 -7 -7 --------- Run | Yrd Mat Min Mat Min Exi Min Mat Gar Mat Fac Gar Distress Signals 4 | . 1 . 2 . . . 1 . . . . Communications Jammed . | . . . . . . . . . . . . Distress Signals . | . . . . . . . . . . . . Times Spotted 219 | . 14 8 29 10 . 11 17 62 9 35 24 Peak Tracking Total 8 | . 4 2 4 3 . 3 4 6 5 8 4 Tactical Retreats 32 | . . . 1 1 . 2 1 12 2 10 3 Traps | -11 -10 -10 -9 -9 -9 -8 -8 -8 -8 -7 -7 ------- Run | Yrd Mat Min Mat Min Exi Min Mat Gar Mat Fac Gar Traps Triggered 11 | . . . . . . . . 6 . 1 4 Indirectly 2 | . . . . . . . . 2 . . . Trap Hack Attempts . | . . . . . . . . . . . . Triggered . | . . . . . . . . . . . . Disarmed . | . . . . . . . . . . . . Reprogrammed . | . . . . . . . . . . . . Reused . | . . . . . . . . . . . . Traps Extracted . | . . . . . . . . . . . . Installed . | . . . . . . . . . . . . Triggered . | . . . . . . . . . . . . Machines | -11 -10 -10 -9 -9 -9 -8 -8 -8 -8 -7 -7 ---------- Run | Yrd Mat Min Mat Min Exi Min Mat Gar Mat Fac Gar Machines Disabled 14 | . 1 2 3 . . . 1 7 . . . Max in Single Turn 1 | . 1 1 1 . . . 1 1 . . . Garrison Relay 5 | . . . . . . . . 5 . . . Machines Repaired . | . . . . . . . . . . . . Machines Dismantled . | . . . . . . . . . . . . Machines Sabotaged . | . . . . . . . . . . . . Overloaded Fab Kills . | . . . . . . . . . . . . Hacking | -11 -10 -10 -9 -9 -9 -8 -8 -8 -8 -7 -7 --------- Run | Yrd Mat Min Mat Min Exi Min Mat Gar Mat Fac Gar Machines Accessed 32 | . 7 . 4 . . . 4 4 3 8 2 Terminals 23 | . 6 . 2 . . . 3 4 3 3 2 Fabricators 1 | . . . . . . . . . . 1 . Repair Stations 5 | . 1 . 1 . . . . . . 3 . Recycling Units . | . . . . . . . . . . . . Scanalyzers 1 | . . . 1 . . . . . . . . Garrison Access 2 | . . . . . . . 1 . . 1 . Total Hacks 88 | . 23 . 10 . . . 13 11 9 18 4 Successful 35 | . 9 . 8 . . . 5 2 4 5 2 Failed 53 | . 14 . 2 . . . 8 9 5 13 2 Catastrophic 8 | . 2 . . . . . . 2 1 3 . Database Lockouts . | . . . . . . . . . . . . Manual 32 | . 16 . 4 . . . 6 . 6 . . Terminals 69 | . 21 . 5 . . . 11 11 9 8 4 Fabricators 3 | . . . . . . . . . . 3 . Repair Stations 11 | . 2 . 3 . . . . . . 6 . Recycling Units . | . . . . . . . . . . . . Scanalyzers 2 | . . . 2 . . . . . . . . Garrison Access 3 | . . . . . . . 2 . . 1 . Terminal Hacks 17 | . 5 . 2 . . . 2 2 3 1 2 Record 1 | . . . . . . . 1 . . . . Robot Analysis 3 | . 2 . 1 . . . . . . . . Branch Access Points 3 | . 1 . . . . . 1 . 1 . . Emergency Access Points 3 | . 1 . . . . . . 1 . . 1 Unreport Threat 1 | . . . . . . . . . . 1 . Recall Investigation 1 | . 1 . . . . . . . . . . Recall Reinforcements 1 | . . . 1 . . . . . . . . Zone Layout 2 | . . . . . . . . . 2 . . Garrison Registry 1 | . . . . . . . . . . . 1 Security Stations 1 | . . . . . . . . 1 . . . Fabricator Hacks 1 | . . . . . . . . . . 1 . Build 1 | . . . . . . . . . . 1 . Repair Station Hacks 5 | . 1 . 2 . . . . . . 2 . Scan Component 2 | . . . 1 . . . . . . 1 . Repair 2 | . . . 1 . . . . . . 1 . Refit 1 | . 1 . . . . . . . . . . Recycling Unit Hacks . | . . . . . . . . . . . . Scanalyzer 2 | . . . 2 . . . . . . . . Insert Component 1 | . . . 1 . . . . . . . . Analyze 1 | . . . 1 . . . . . . . . Garrison Access Hacks 2 | . . . . . . . 1 . . 1 . Unlock Access 2 | . . . . . . . 1 . . 1 . Unauthorized Hacks 8 | . 3 . 2 . . . 2 . 1 . . Terminals 8 | . 3 . 2 . . . 2 . 1 . . Assimilate 1 | . 1 . . . . . . . . . . Botnet 3 | . 1 . 1 . . . 1 . . . . Operators 4 | . 1 . 1 . . . 1 . 1 . . Fabricators . | . . . . . . . . . . . . Repair Stations . | . . . . . . . . . . . . Recycling Units . | . . . . . . . . . . . . Scanalyzers . | . . . . . . . . . . . . Garrison Access . | . . . . . . . . . . . . Data Cores Recovered 1 | . . . . . . . . . 1 . . Used . | . . . . . . . . . . . . Hacking Detections 29 | . 6 . 3 . . . 4 4 3 8 1 Full Trace Events 6 | . 1 . 1 . . . . 2 . 2 . Feedback Events . | . . . . . . . . . . . . Feedback Blocked . | . . . . . . . . . . . . Robot Schematics Acquired . | . . . . . . . . . . . . Robots Built 3 | . . . . . . . . . . 3 . Authchips . | . . . . . . . . . . . . Time 99 | . . . . . . . . . . 99 . Total Robot Build Rating 6 | . . . . . . . . . . 6 . Part Schematics Acquired 1 | . . . 1 . . . . . . . . Parts Built . | . . . . . . . . . . . . Authchips . | . . . . . . . . . . . . Time . | . . . . . . . . . . . . Total Part Build Rating . | . . . . . . . . . . . . Parts Repaired 2 | . . . 1 . . . . . . 1 . Time 76 | . . . 26 . . . . . . 50 . Parts Recycled . | . . . . . . . . . . . . Recycled Matter . | . . . . . . . . . . . . Retrieved Matter . | . . . . . . . . . . . . Retrieved Components . | . . . . . . . . . . . . Parts Scanalyzed 1 | . . . 1 . . . . . . . . Part Schematics Acquired 1 | . . . 1 . . . . . . . . Parts Damaged . | . . . . . . . . . . . . Bothacking | -11 -10 -10 -9 -9 -9 -8 -8 -8 -8 -7 -7 ------------ Run | Yrd Mat Min Mat Min Exi Min Mat Gar Mat Fac Gar Used RIF Installer 2 | . . . . . . . . 1 . . 1 Program Shield 1 | . . . . . . . . . . . 1 Robots Hacked 10 | . . . . . . . . 1 . 7 2 Non-combat . | . . . . . . . . . . . . Combat 10 | . . . . . . . . 1 . 7 2 Robot Hacks Applied 11 | . . . . . . . . 1 . 8 2 overload_power 2 | . . . . . . . . . . . 2 amplify_resonance 1 | . . . . . . . . . . 1 . disable_weapons 1 | . . . . . . . . . . 1 . reboot_system 1 | . . . . . . . . . . 1 . formatsys_high 6 | . . . . . . . . 1 . 5 . Relay Couplers Released 19 | . . . . . . . . 19 . . . Machine Destruction 19 | . . . . . . . . 19 . . . Attached 5 | . . . . . . . . 1 . 4 . Fabnet Peak Effective % . | . . . . . . . . . . . . Robots Rewired 3 | . . . . . . . . 3 . . . Allies Hacked . | . . . . . . . . . . . . Hacks Repelled . | . . . . . . . . . . . . Allies | -11 -10 -10 -9 -9 -9 -8 -8 -8 -8 -7 -7 -------- Run | Yrd Mat Min Mat Min Exi Min Mat Gar Mat Fac Gar Total Allies 15 | . 1 2 . . . . . 4 . 8 . Largest Group 4 | . 1 3 3 1 . . . 3 1 4 1 Highest-Rated Group 87 | . 10 52 52 9 . . . 87 15 75 16 Highest-Rated Ally 31 | . 10 31 31 9 . . . 31 15 21 16 Total Orders 6 | . . . . . . . . 4 . 2 . STAY 3 | . . . . . . . . 2 . 1 . FOLLOW 3 | . . . . . . . . 2 . 1 . Ally Attacks 97 | . . . 27 . . . . 20 3 46 1 Total Damage 1711 | . . . 398 . . . . 362 49 880 22 Kills 19 | . . . 3 . . . . 7 2 7 . Allies Corrupted . | . . . . . . . . . . . . Allies Melted . | . . . . . . . . . . . . Intel | -11 -10 -10 -9 -9 -9 -8 -8 -8 -8 -7 -7 ------- Run | Yrd Mat Min Mat Min Exi Min Mat Gar Mat Fac Gar Active Infowar (turns) 2564 | . 651 . . . . . . . 729 1178 6 Sensors 1913 | . . . . . . . . . 729 1178 6 Structural 651 | . 651 . . . . . . . . . . Robot Analysis Total 3 | . 2 . 1 . . . . . . . . Derelict Logs Recovered 3 | . . 2 . 1 . . . . . . . Drone Launches . | . . . . . . . . . . . . Drone Recoveries . | . . . . . . . . . . . . Exploration | -11 -10 -10 -9 -9 -9 -8 -8 -8 -8 -7 -7 ------------- Run | Yrd Mat Min Mat Min Exi Min Mat Gar Mat Fac Gar Turns Passed 13078 | 78 1080 1132 1329 623 836 1020 711 3589 764 1230 686 Spaces Moved 5897 | 47 518 431 435 222 262 349 273 1590 296 959 515 Core 13 | 7 . . . . . . . . . . 6 Treads 2587 | 40 518 431 435 222 262 349 64 266 . . . Legs 1621 | . . . . . . . 209 1324 88 . . Wheels . | . . . . . . . . . . . . Hover 1607 | . . . . . . . . . 208 959 440 Flight 69 | . . . . . . . . . . . 69 Fastest Speed 26 | 50 160 240 240 240 320 240 190 120 132 59 26 Average Speed 180 | 144 192 240 240 265 320 274 208 198 148 67 59 Slowest Speed 435 | 160 240 240 240 320 320 320 400 330 217 132 435 Overloaded Moves . | . . . . . . . . . . . . Propulsion Burnouts . | . . . . . . . . . . . . Robots Hopped . | . . . . . . . . . . . . Potential Cave-ins . | . . . . . . . . . . . . Cave-ins Triggered . | . . . . . . . . . . . . Exploration Rate (%) 51 | 5 82 92 37 51 73 82 25 88 20 19 46 Regions Visited 11 Branch Regions 4 Pre-discovered Areas . | . . . . . . . . . . . . Known Exits Taken 5 | . 1 . . . . 1 1 . 1 1 . Unknown Exits Taken 5 | 1 . 1 1 1 1 . . . . . . Scrap Searched 3 | . . 1 . 1 . 1 . . . . . Spaces Dug 8 | . . . . . . . . . 8 . . Terrain Destroyed 228 | . 2 . 18 67 . 105 1 27 8 . . Melee 8 | . . . . . . . . . 8 . . Projectile . | . . . . . . . . . . . . AOE 220 | . 2 . 18 67 . 105 1 27 . . . Terrain Rammed . | . . . . . . . . . . . . Walls Destroyed . | . . . . . . . . . . . . Machines Disabled . | . . . . . . . . . . . . Actions | -11 -10 -10 -9 -9 -9 -8 -8 -8 -8 -7 -7 --------- Run | Yrd Mat Min Mat Min Exi Min Mat Gar Mat Fac Gar Total 7754 | 55 580 508 605 244 261 384 357 1881 576 1501 802 Wait 1106 | . 17 64 96 9 . . 2 51 236 451 180 Move 5885 | 46 517 430 434 221 261 348 272 1588 295 958 515 Hop . | . . . . . . . . . . . . Pick Up 94 | 2 14 1 3 1 . 4 11 41 6 8 3 Fast Attach 60 | 6 7 1 2 . . 4 10 12 1 8 9 Attach 48 | . . . 4 1 . 4 2 11 7 11 8 Detach 9 | 1 3 . . . . 1 . . . 2 2 Swap 14 | . 1 . 1 . . . 3 3 . 3 3 Drop 102 | . 5 1 1 1 . 3 16 44 7 17 7 Fire 327 | . 16 11 63 10 . 19 41 78 . 31 58 Melee 66 | . . . . . . . . 31 24 11 . Ram . | . . . . . . . . . . . . Kick . | . . . . . . . . . . . . Crush 3 | . . . 1 1 . 1 . . . . . Escape Stasis 19 | . . . . . . . . 2 . . 17 Rewire 21 | . . . . . . . . 20 . 1 . Trap . | . . . . . . . . . . . . Miscellaneous . | . . . . . . . . . . . . Route ------- -11/Scrapyard -10/Materials (discovered 4 exits: *Mat x3 / *Min) -10/Mines (discovered 2 exits: *Mat x2) -9/Materials (discovered 3 exits: Mat / [*Min] / [*Sto]) -9/Mines (discovered 2 exits: *Mat / [*Exi]) -9/Exiles -8/Mines (discovered 2 exits: *Mat x2) -8/Materials -8/Garrison (discovered 4 exits: *Mat x4) -8/Materials -7/Factory (discovered 2 exits: *Fac / Gar) -7/Garrison (discovered 3 exits: [*Fac x3]) History --------- Turn | Location | Event 10 | -11/Scrapyard | Discovered new exit (range 16) 79 | -11/Scrapyard | Entered Materials 300 | -10/Materials | Discovered new exit (range 3) 334 | -10/Materials | Build established: Mutant 345 | -10/Materials | Identified exit to Mines 683 | -10/Materials | Discovered new exit (range 15) 1076 | -10/Materials | Discovered new exit (range 16) 1159 | -10/Materials | Entered Mines 1159 | -10/Mines | Accompanied by 1 ally 1213 | -10/Mines | Learned Materials non-interactive machine intel 1290 | -10/Mines | Learned 4 Materials zone layouts 1811 | -10/Mines | Discovered new exit (range 5) 2147 | -10/Mines | A weapon hastily lodged in a ceiling crevice suddenly fell to the ground 2272 | -10/Mines | Discovered new exit (range 8) 2291 | -10/Mines | Entered Materials 2291 | -9/Materials | Accompanied by 3 allies 2291 | -9/Materials | Evolved 2 slots: Utility x2 2292 | -9/Materials | Identified exit to Materials 2293 | -9/Materials | Loaded intel: 37 non-interactive machine locations 2296 | -9/Materials | Led the pair of lost Derelicts to an unsafe place 3105 | -9/Materials | Discovered new exit (range 13) 3154 | -9/Materials | Discovered new exit (range 15) 3362 | -9/Materials | Repaired Lgt. Treads 3620 | -9/Materials | Entered Mines 3620 | -9/Mines | Accompanied by 1 ally 3688 | -9/Mines | Assembled infested the area 3805 | -9/Mines | Met 8R-AWN 3843 | -9/Mines | Learned Materials machine intel 3982 | -9/Mines | Discovered exit to Materials (range 2) 4230 | -9/Mines | Discovered new exit (range 5) 4243 | -9/Mines | Entered Exiles 4323 | -9/Exiles | Welcomed by 8R-AWN 4378 | -9/Exiles | Met EX-HEX 4461 | -9/Exiles | Met EX-BIN 4637 | -9/Exiles | Met EX-DEC 4808 | -9/Exiles | Visited The Gauntlet 5040 | -9/Exiles | Discovered new exit (range 14) 5079 | -9/Exiles | Entered Mines 5168 | -8/Mines | Core integrity fell below 50% 5262 | -8/Mines | Discovered exit to Materials (range 14) 5416 | -8/Mines | Found DCF Scrap (12 items) 6063 | -8/Mines | Discovered exit to Materials (range 14) 6099 | -8/Mines | Entered Materials 6099 | -8/Materials | Evolved 2 slots: Propulsion x1, Utility x1 6100 | -8/Materials | Loaded intel: 49 machine locations 6491 | -8/Materials | Build established: Scavenger-Mutant 6807 | -8/Materials | Identified exit to Garrison 6810 | -8/Materials | Entered Garrison 6840 | -8/Garrison | Triggered checkpoint 6879 | -8/Garrison | Garrison Relay disabled 6997 | -8/Garrison | Build established: Mutant 7130 | -8/Garrison | Triggered checkpoint 7199 | -8/Garrison | Discovered new exit (range 6) 7551 | -8/Garrison | Triggered checkpoint 7553 | -8/Garrison | Triggered checkpoint 7562 | -8/Garrison | Triggered checkpoint 7598 | -8/Garrison | Destroyed 8 combat bots 7599 | -8/Garrison | Lost 4 parts (1p2n1w) 7712 | -8/Garrison | Discovered new exit (range 9) 7774 | -8/Garrison | Triggered checkpoint 7809 | -8/Garrison | Core integrity fell below 50% 7847 | -8/Garrison | Garrison Relay disabled 7886 | -8/Garrison | Learned Materials security intel 7900 | -8/Garrison | Build established: Scavenger-Mutant 8008 | -8/Garrison | Triggered checkpoint 8114 | -8/Garrison | Triggered checkpoint 8154 | -8/Garrison | Garrison Relay disabled 8168 | -8/Garrison | Triggered checkpoint 8231 | -8/Garrison | Installed Relay Interface Framework 8562 | -8/Garrison | Discovered new exit (range 12) 8703 | -8/Garrison | Build established: Bothacker-Mutant 9275 | -8/Garrison | Discovered new exit (range 14) 9342 | -8/Garrison | Triggered checkpoint 9477 | -8/Garrison | Garrison Relay disabled 9503 | -8/Garrison | Garrison Relay disabled 9522 | -8/Garrison | Triggered checkpoint 9957 | -8/Garrison | Build established: Bothacker-Gladiator 10399 | -8/Garrison | Entered Materials 10399 | -8/Materials | Accompanied by 1 ally 11150 | -8/Materials | Discovered new exit (range 6) 11157 | -8/Materials | Identified exit to Factory 11163 | -8/Materials | Entered Factory 11163 | -7/Factory | Evolved 2 slots: Propulsion x1, Utility x1 11306 | -7/Factory | Repaired Cmb. Airjet 11685 | -7/Factory | Build established: Bothacker-Mutant 11911 | -7/Factory | Fabricated L-31 Rogue (x3) 12127 | -7/Factory | Build established: Scavenger-Mutant 12178 | -7/Factory | Discovered new exit (range 14) 12196 | -7/Factory | Identified exit to Factory 12384 | -7/Factory | Identified exit to Garrison 12386 | -7/Factory | Lost 3 allies 12393 | -7/Factory | Entered Garrison 12393 | -7/Garrison | Accompanied by 1 ally 12472 | -7/Garrison | Discovered new exit (range 47) 12472 | -7/Garrison | Discovered new exit (range 59) 12472 | -7/Garrison | Discovered new exit (range 72) 12521 | -7/Garrison | Triggered checkpoint 12601 | -7/Garrison | Triggered checkpoint 12651 | -7/Garrison | Triggered checkpoint 12693 | -7/Garrison | Triggered checkpoint 12812 | -7/Garrison | Expanded RIF knowledge: Program Shield 12875 | -7/Garrison | Triggered checkpoint 12924 | -7/Garrison | Lost 4 parts (1p1n1u1w) 13048 | -7/Garrison | Core integrity fell below 50% 13074 | -7/Garrison | Core integrity fell below 20% 13079 | -7/Garrison | Destroyed by Y-54 Guardian with Gatling Laser Last Messages --------------- 13051_ VTOL Module destroyed. 13052_ Y-54 Guardian destroyed. 13052_ Switching to secondary target: Y-54 Guardian. 13054_ VTOL Module destroyed. 13057_ Autogun destroyed. 13061_ VTOL Module destroyed. 13068_ Triggered Stasis Trap. 13068_ A bubble of rippling energy engulfs the area. 13068_ Field strength at 95. 13070_ Autogun destroyed. 13071_ Field strength at 58. 13072_ Field strength at 53. 13073_ Dropped Med. Storage Unit. 13074_ Field strength at 29. 13075_ Field strength at 11. 13076_ Field strength at 6. 13076_ Stasis field depleted. 13076_ VTOL Module destroyed. Map ----- +----------------------------------------------------+ | ??????????# " #???????????????????? | | ??????????# " #???????????????????? | | ??????????# " #???????????????????? | | ??????????### ## ## ###???????????????????? | | ??########### ## ## #?????????????????????? | | ### ^ #?????????????????????? | | + ^ = #?????????????????????? | | ### ##+##### #??????????########???? | | #?# ## #???##^^## % =## ##??????????# #???? | | #?# ## #????# ## %## #???????????# """"#???? | | ??# ## #????# ##+##+## #???????????# ]]""#???? | | ??# ## ###### ## ## ## #???????????# ]]""#???? | | ??# ## + + ## ## #???????????# """"#???? | | ??# #### #### ##### + #???????????# #???? | | ### ####+#### #???#### #???????????# #######??? | | #??????# #???????#####+### #### | | #??????# #???????# | | ### #####+##### #??????# #???????# | | ??# #???# #???# #??????# #???????# | | ??# #???# #???# #??????# ######??# | | ??# #???# #???# #??????#*[+ #??# | | ??# #???# #???# #??????# %#### #??# | | ??# #???# #???# #??????# #??# #??# | | ??# #???# #???# #??????# *#??# #??# | | ??# #???# #???# #??????# ####+#### | | ??# #???# #???# #??????# @*= !! Y! < | | ??# ###?# #?### #??????# = | Y | | ### " ### ### " ####???############ | | " + + " #??????????????# | | ## " ####### " ## ##?????????????# | | !# ###?????### #! !#?????????????# | | !# #?????????# #! !#?????????????# | | !# ########### #! !#?????????????# | | ## #####?????????????# | | ####### ######?????????????????# | | ####?#"""""#?????????????????????################ | | #?#######????????????????????????????????????? | | #?????????????????????????????????############ | | #?????????????????????????????????#""""""""""" | | * #?????????????????????????????????#" " "" " "" | | #?????????????????????????????????#" "! " | | #?????????????????????????????????#" ! | | #?????????????????????????????????#" ! | | #?????????????????????????????????#" | | #?????????????????????????????????#"! | | #?????????????????????????????????#" " " #" | | #####?????????????????????????????????#" " "" " | | ??????????????????????????????????????#""""""""### | | ??????????????????????????????????????##########?# | | ?????????????????????????????????????????????????? | +----------------------------------------------------+ Best States ------------- Heat Dissipation 34 Energy Generation 15 Energy Capacity 280 Matter Stores 300 Matter Capacity 300 Sight Range 16 Robot Scan Range 15 Terrain Scan Density 10 Armor Coverage 225 Core Shielding 20 Weapon Shielding 66 Evasion (%) 64 Melee Accuracy 5 Target Analysis 5 Recoil Reduction 2 Offensive Hacking 10 Defensive Hacking 12 Relay Coupler Types 1 Relay Coupler Value 36 Item Schematics ----------------- Hacking Suite | -9/Materials | Scanalyzed Robot Schematics ------------------ None Fabricated ------------ L-31 Rogue | x3 | -7/Factory | Preloaded Repaired ---------- Lgt. Treads | 1% | -9/Materials Cmb. Airjet | 67% | -7/Factory Alien Tech Used ----------------- None Achievements -------------- None Challenges ------------ None Game ------ Seed CompositePointInterrupter Manual? 0 Play Time 01:14:10 Cumulative 465.3 hours Start 2025.05.30 @ 16:42:39 End 2025.05.30 @ 18:14:57 Sessions 1 Manual Loads 0 Difficulty Rogue Special Mode None Game No. 797 Rogue 642 Adventurer 148 Explorer 7 Win Type - Total 22 Types 17/1/3/1/0/0/0/0/0/0 Lore% 63 Gallery% 76 Achievement% 74 Wizard Run 0 Options --------- Layout 1 ASCII 0 Keyboard 0 Movement Numpad Keybinds 0 Fullscreen 2 Font 24/Smallcaps Map View 50x35 Zoom Use 0% Tactical HUD 1 Map Filters NONE Filters NONE Steam 1 RUN: 55daa53e-079a-4b18-b0d2-4f34dd9b3c10